fUST/lending_fUST_20250722
["ID","MTS","AMOUNT","RATE_DAILY","PERIOD"]
[373962329,1753163453961,-1001.37,0.00022579,2]
[373962332,1753163453971,-944.37,0.00022579,2]
[373962334,1753163453981,-834.11,0.00022582,2]
[373962336,1753163453991,-540.77,0.00022582,2]
[373962338,1753163454000,-958.9,0.00022584,2]
[373962340,1753163454010,-689.9,0.00022584,2]
[373962342,1753163454020,-706.84,0.00022584,2]
[373962343,1753163454030,-1262.91,0.00022584,2]
[373962345,1753163454040,-701.74,0.00022584,2]
[373962348,1753163454050,-430.0,0.00022586,2]
[373962350,1753163454059,-785.55593938,0.0002259,7]
[373962352,1753163454069,-643.0,0.000226,2]
[373962354,1753163454078,-344.037062,0.00022603,2]
[373962356,1753163454088,-168.0,0.00022641,2]
[373962357,1753163454098,-2151.46,0.00022675,3]
[373962359,1753163454107,-1569.63,0.0002269,2]
[373962361,1753163454117,-661.66,0.0002269,2]
[373962363,1753163454127,-3889.01,0.0002269,2]
[373962365,1753163454136,-1217.47,0.0002269,2]
[373962367,1753163454146,-126.28317934,0.00022694,2]
[373962371,1753163454178,-41.71682066,0.00022694,2]
[373962373,1753163454188,-206.0,0.0002271,2]
[373962375,1753163454202,-590.08263942,0.00022775,5]
[373962391,1753163454360,-460.0,0.00016826,2]
[373962393,1753163454370,-1561.37736058,0.00022775,5]
[373962395,1753163454380,-642.61,0.0002285,2]
[373962397,1753163454389,-944.37,0.00022853,2]
[373962399,1753163454399,-834.11,0.00022856,2]
[373962401,1753163454410,-540.77,0.00022856,2]
[373962403,1753163454419,-958.9,0.00022858,2]
[373962405,1753163454429,-689.9,0.00022858,2]
[373962407,1753163454439,-706.84,0.00022858,2]
[373962409,1753163454452,-1262.91,0.00022858,2]
[373962411,1753163454462,-701.74,0.00022858,2]
[373962413,1753163454472,-430.0,0.0002286,2]
[373962415,1753163454481,-785.55593938,0.00022866,8]
[373962417,1753163454490,-500.0,0.00022873,2]
[373962419,1753163454500,-2151.46,0.00022875,3]
[373962421,1753163454510,-31136.74243739,0.00022888,2]
[373962423,1753163454522,-368.4693932,0.00022888,2]
[373962430,1753163454582,-460.0,0.00016823,2]
[373962432,1753163454592,-306.67821657,0.00016825,2]
[373963272,1753163632771,218.333901,0.00013699,2]
[373963275,1753163824311,2825.76024417,0.00016672,2]
[373963276,1753163824339,3257.72729044,0.00016672,2]
[373963277,1753163837323,206.447841,0.00015761,2]
[373963278,1753163845012,1060.14889355,0.00016672,2]
[373963280,1753164020078,307.7309051,0.00016623,2]
[373963281,1753164114691,4055.65835642,0.00016672,2]
[373963282,1753164163028,226.0,0.00024,60]
[373963283,1753164188600,848.11911484,0.00016672,2]
[373963284,1753164281722,269.26454198,0.00016621,2]
[373963285,1753164286754,-211.13,0.00016714,3]
[373963286,1753164286778,-633.39,0.00016714,3]
[373963287,1753164286803,-500.0,0.0001672,2]
[373963288,1753164286827,-355.48,0.0001672,2]
[373963289,1753164352659,128477.23847514,0.00016,3]
[373963290,1753164404917,2703.7722376,0.00016672,2]
[373963292,1753164527644,678.49529188,0.00016672,2]
[373963293,1753164542129,235.60647425,0.00016618,2]
[373963330,1753164632771,-624.0,0.00016708,3]
[373963333,1753164632781,-312.0,0.00016708,3]
[373963336,1753164632790,-156.0,0.00016708,3]
[373963339,1753164632799,-422.26,0.00016709,3]
[373963341,1753164632809,-155.549,0.00016717,2]
[373963343,1753164632819,-300.0,0.00016717,2]
[373963345,1753164632828,-598.31782041,0.00016717,2]
[373963352,1753164632884,-601.68217959,0.00016717,2]
[373963354,1753164632893,-4764.45171987,0.00016718,2]
[373963356,1753164632904,-484.08269003,0.00016718,2]
[373963358,1753164632915,-9350.4444149,0.00016718,2]
[373963360,1753164632927,-699.856,0.00016718,2]
[373963363,1753164632938,-1253.09860087,0.00016718,2]
[373963375,1753164639190,-468.04,0.00016708,3]
[373963376,1753164639201,-33448.06657433,0.00016718,2]
[373963377,1753164639211,-463.4151537,0.00016718,2]
[373963378,1753164639220,-460.0,0.00016718,2]
[373963379,1753164639231,-460.0,0.00016718,2]
[373963380,1753164639244,-460.0,0.00016718,2]
[373963381,1753164639254,-280.54419779,0.00016719,2]
[373963382,1753164639263,-460.0,0.00016719,2]
[373963383,1753164639272,-460.0,0.00016719,2]
[373963384,1753164639282,-460.0,0.00016719,2]
[373963385,1753164639293,-460.0,0.00016719,2]
[373963386,1753164639302,-534.58983004,0.00016719,2]
[373963387,1753164639312,-460.0,0.00016719,2]
[373963388,1753164639321,-460.0,0.00016719,2]
[373963389,1753164639331,-460.0,0.00016719,2]
[373963390,1753164639342,-460.0,0.00016719,2]
[373963391,1753164639352,-645.62,0.00016719,2]
[373963392,1753164639361,-460.0,0.00016721,2]
[373963393,1753164639371,-1442.99,0.00016721,2]
[373963394,1753164639383,-460.0,0.00016721,2]
[373963395,1753164639392,-460.0,0.00016721,2]
[373963396,1753164639401,-460.0,0.00016721,2]
[373963397,1753164639411,-460.0,0.00016721,2]
[373963398,1753164639421,-460.0,0.00016721,2]
[373963399,1753164639430,-911.11,0.00016721,2]
[373963400,1753164639439,-460.0,0.00016721,2]
[373963401,1753164639449,-460.0,0.00016721,2]
[373963402,1753164639458,-460.0,0.00016721,2]
[373963403,1753164639468,-460.0,0.00016721,2]
[373963404,1753164639477,-460.0,0.00016721,2]
[373963405,1753164639487,-460.0,0.00016722,2]
[373963406,1753164639498,-460.0,0.00016722,2]
[373963407,1753164639507,-460.0,0.00016722,2]
[373963408,1753164639517,-463.07156495,0.00016722,2]
[373963409,1753164639526,-460.0,0.00016722,2]
[373963410,1753164639536,-460.0,0.00016722,2]
[373963411,1753164639545,-460.0,0.00016722,2]
[373963412,1753164639555,-460.0,0.00016722,2]
[373963413,1753164639566,-460.0,0.00016722,2]
[373963414,1753164639579,-460.0,0.00016722,2]
[373963415,1753164639588,-460.0,0.00016722,2]
[373963416,1753164639598,-460.0,0.00016722,2]
[373963417,1753164639607,-460.0,0.00016722,2]
[373963418,1753164639617,-460.0,0.00016722,2]
[373963419,1753164639626,-469.03337623,0.00016722,2]
[373963420,1753164639636,-460.0,0.00016722,2]
[373963421,1753164639647,-461.11525908,0.00016722,2]
[373963422,1753164639657,-460.0,0.00016722,2]
[373963423,1753164639667,-460.0,0.00016722,2]
[373963424,1753164639676,-460.0,0.00016722,2]
[373963425,1753164639686,-460.0,0.00016722,2]
[373963426,1753164639696,-464.92581405,0.00016722,2]
[373963427,1753164639706,-460.0,0.00016722,2]
[373963428,1753164639715,-460.0,0.00016722,2]
[373963429,1753164639725,-460.0,0.00016722,2]
[373963430,1753164639735,-460.0,0.00016722,2]
[373963431,1753164639744,-460.0,0.00016722,2]
[373963432,1753164639754,-460.0,0.00016722,2]
[373963433,1753164639764,-2099.66,0.00016722,2]
[373963434,1753164639776,-460.0,0.00016722,2]
[373963435,1753164639786,-463.76648307,0.00016722,2]
[373963436,1753164639796,-460.0,0.00016722,2]
[373963437,1753164639806,-460.0,0.00016722,2]
[373963438,1753164639815,-460.0,0.00016722,2]
[373963439,1753164639824,-460.0,0.00016722,2]
[373963440,1753164639834,-460.0,0.00016722,2]
[373963441,1753164639844,-460.0,0.00016722,2]
[373963442,1753164639853,-463.30609476,0.00016722,2]
[373963443,1753164639863,-460.0,0.00016722,2]
[373963444,1753164639872,-460.0,0.00016722,2]
[373963445,1753164639882,-460.0,0.00016722,2]
[373963446,1753164639891,-460.0,0.00016722,2]
[373963447,1753164639902,-460.0,0.00016722,2]
[373963448,1753164639911,-460.0,0.00016722,2]
[373963449,1753164639921,-460.0,0.00016722,2]
[373963450,1753164639931,-551.7346544,0.00016722,2]
[373963451,1753164639940,-460.0,0.00016722,2]
[373963452,1753164639950,-460.0,0.00016722,2]
[373963453,1753164639960,-461.451745,0.00016722,2]
[373963454,1753164639969,-460.0,0.00016722,2]
[373963455,1753164639978,-460.0,0.00016722,2]
[373963456,1753164639988,-460.0,0.00016722,2]
[373963457,1753164639999,-460.0,0.00016723,2]
[373963458,1753164640008,-460.0,0.00016723,2]
[373963459,1753164640018,-463.06496711,0.00016723,2]
[373963460,1753164640028,-460.0,0.00016723,2]
[373963461,1753164640038,-460.0,0.00016723,2]
[373963462,1753164640048,-460.0,0.00016723,2]
[373963463,1753164640057,-460.0,0.00016723,2]
[373963464,1753164640067,-460.0,0.00016723,2]
[373963465,1753164640076,-364.44,0.00016723,2]
[373963466,1753164640085,-460.0,0.00016723,2]
[373963467,1753164640095,-460.0,0.00016723,2]
[373963468,1753164640105,-463.61325076,0.00016723,2]
[373963469,1753164640124,-460.0,0.00016723,2]
[373963470,1753164640135,-460.0,0.00016723,2]
[373963472,1753164640144,-460.0,0.00016723,2]
[373963474,1753164640155,-460.0,0.00016723,2]
[373963475,1753164640164,-466.04393836,0.00016723,2]
[373963476,1753164640174,-500.0,0.00016723,2]
[373963477,1753164640184,-460.0,0.00016723,2]
[373963478,1753164640194,-460.0,0.00016723,2]
[373963479,1753164640204,-460.0,0.00016723,2]
[373963480,1753164640214,-460.0,0.00016723,2]
[373963481,1753164640223,-460.0,0.00016723,2]
[373963482,1753164640234,-460.0,0.00016723,2]
[373963483,1753164640245,-460.0,0.00016723,2]
[373963484,1753164640255,-460.0,0.00016723,2]
[373963485,1753164640265,-460.0,0.00016723,2]
[373963486,1753164640275,-460.0,0.00016723,2]
[373963487,1753164640284,-460.0,0.00016723,2]
[373963488,1753164640295,-460.0,0.00016723,2]
[373963489,1753164640306,-460.0,0.00016723,2]
[373963490,1753164640315,-460.0,0.00016723,2]
[373963491,1753164640325,-460.0,0.00016723,2]
[373963492,1753164640335,-460.0,0.00016723,2]
[373963493,1753164640344,-460.0,0.00016723,2]
[373963494,1753164640355,-460.0,0.00016723,2]
[373963495,1753164640365,-460.0,0.00016723,2]
[373963496,1753164640375,-460.0,0.00016723,2]
[373963497,1753164640384,-460.0,0.00016723,2]
[373963498,1753164640394,-461.90416747,0.00016723,2]
[373963499,1753164640404,-604.38675791,0.00016723,2]
[373963500,1753164640413,-460.0,0.00016723,2]
[373963501,1753164640423,-460.0,0.00016723,2]
[373963502,1753164640433,-460.0,0.00016723,2]
[373963503,1753164640442,-460.0,0.00016723,2]
[373963504,1753164640452,-460.0,0.00016723,2]
[373963505,1753164640462,-460.0,0.00016723,2]
[373963506,1753164640472,-460.0,0.00016723,2]
[373963507,1753164640483,-395.94979675,0.00016723,2]
[373963508,1753164640496,-460.0,0.00016723,2]
[373963509,1753164640505,-460.0,0.00016723,2]
[373963510,1753164640515,-460.0,0.00016723,2]
[373963511,1753164640525,-460.0,0.00016723,2]
[373963512,1753164640535,-460.0,0.00016723,2]
[373963513,1753164640545,-460.0,0.00016723,2]
[373963514,1753164640555,-460.0,0.00016723,2]
[373963515,1753164640565,-460.0,0.00016723,2]
[373963516,1753164640580,-460.0,0.00016723,2]
[373963517,1753164640589,-460.0,0.00016723,2]
[373963518,1753164640599,-460.0,0.00016723,2]
[373963519,1753164640609,-433.24118876,0.00016723,2]
[373963520,1753164640619,-1079.82,0.00016723,2]
[373963521,1753164640629,-460.0,0.00016723,2]
[373963522,1753164640640,-404.50962673,0.00016723,2]
[373963523,1753164640650,-460.0,0.00016723,2]
[373963524,1753164640660,-460.0,0.00016723,2]
[373963525,1753164640670,-460.0,0.00016723,2]
[373963526,1753164640680,-464.07857501,0.00016723,2]
[373963527,1753164640690,-460.0,0.00016723,2]
[373963528,1753164640700,-464.7501534,0.00016723,2]
[373963529,1753164640710,-460.0,0.00016723,2]
[373963531,1753164640720,-460.0,0.00016723,2]
[373963532,1753164640730,-460.0,0.00016723,2]
[373963533,1753164640740,-460.0,0.00016723,2]
[373963534,1753164640754,-460.0,0.00016723,2]
[373963535,1753164640763,-460.0,0.00016723,2]
[373963536,1753164640773,-460.0,0.00016723,2]
[373963538,1753164640782,-460.0,0.00016723,2]
[373963540,1753164640792,-460.0,0.00016723,2]
[373963541,1753164640801,-460.0,0.00016723,2]
[373963542,1753164640811,-460.0,0.00016723,2]
[373963543,1753164640820,-460.0,0.00016723,2]
[373963544,1753164640830,-460.0,0.00016723,2]
[373963545,1753164640839,-460.0,0.00016723,2]
[373963546,1753164640849,-500.0,0.00016724,2]
[373963547,1753164640859,-511.35850812,0.00016724,2]
[373963548,1753164640868,-500.0,0.00016724,2]
[373963549,1753164640878,-500.0,0.00016724,2]
[373963550,1753164640887,-460.0,0.00016724,2]
[373963552,1753164640897,-460.0,0.00016724,2]
[373963554,1753164640907,-329.1904351,0.00016724,2]
[373963556,1753164640917,-460.0,0.00016724,2]
[373963558,1753164640927,-460.0,0.00016724,2]
[373963560,1753164640937,-460.0,0.00016724,2]
[373963562,1753164640946,-460.0,0.00016724,2]
[373963564,1753164640956,-460.0,0.00016724,2]
[373963566,1753164640965,-460.0,0.00016724,2]
[373963568,1753164640975,-460.0,0.00016724,2]
[373963570,1753164640984,-460.0,0.00016724,2]
[373963572,1753164640996,-460.0,0.00016724,2]
[373963574,1753164641006,-460.0,0.00016724,2]
[373963576,1753164641015,-460.0,0.00016724,2]
[373963578,1753164641025,-585.75,0.00016724,2]
[373963580,1753164641034,-460.0,0.00016724,2]
[373963582,1753164641044,-370000.0,0.00016725,2]
[373963584,1753164641054,-460.0,0.00016772,2]
[373963586,1753164641063,-460.0,0.00016772,2]
[373963588,1753164641074,-460.0,0.00016772,2]
[373963590,1753164641084,-460.0,0.00016772,2]
[373963591,1753164641093,-460.0,0.00016772,2]
[373963594,1753164641103,-460.0,0.00016772,2]
[373963596,1753164641113,-460.0,0.00016772,2]
[373963598,1753164641122,-460.0,0.00016772,2]
[373963600,1753164641132,-460.0,0.00016772,2]
[373963602,1753164641142,-460.0,0.00016772,2]
[373963604,1753164641152,-460.0,0.00016772,2]
[373963606,1753164641162,-460.0,0.00016772,2]
[373963608,1753164641171,-460.0,0.00016772,2]
[373963610,1753164641181,-460.0,0.00016772,2]
[373963612,1753164641190,-265.17840848,0.00016772,2]
[373963614,1753164641199,-460.0,0.00016772,2]
[373963616,1753164641208,-460.0,0.00016772,2]
[373963618,1753164641217,-460.0,0.00016772,2]
[373963639,1753164641400,-460.0,0.00016772,2]
[373963641,1753164641417,-460.0,0.00016772,2]
[373963643,1753164641426,-460.0,0.00016772,2]
[373963645,1753164641436,-203.35885752,0.00016772,2]
[373963647,1753164641446,-502.83212468,0.00016772,2]
[373963649,1753164641456,-460.0,0.00016772,2]
[373963651,1753164641466,-460.0,0.00016772,2]
[373963653,1753164641475,-460.0,0.00016772,2]
[373963655,1753164641485,-460.0,0.00016772,2]
[373963657,1753164641495,-460.0,0.00016772,2]
[373963659,1753164641505,-460.0,0.00016772,2]
[373963661,1753164641515,-460.0,0.00016772,2]
[373963663,1753164641524,-170.83632736,0.00016772,2]
[373963665,1753164641533,-460.0,0.00016772,2]
[373963667,1753164641543,-460.0,0.00016772,2]
[373963669,1753164641552,-460.0,0.00016772,2]
[373963671,1753164641562,-460.0,0.00016772,2]
[373963673,1753164641574,-460.0,0.00016772,2]
[373963675,1753164641584,-460.0,0.00016772,2]
[373963677,1753164641593,-460.0,0.00016772,2]
[373963679,1753164641603,-465.49053133,0.00016772,2]
[373963681,1753164641613,-460.0,0.00016772,2]
[373963683,1753164641623,-473.8932571,0.00016772,2]
[373963685,1753164641632,-460.0,0.00016772,2]
[373963687,1753164641642,-460.0,0.00016772,2]
[373963689,1753164641653,-460.0,0.00016772,2]
[373963691,1753164641663,-460.0,0.00016772,2]
[373963693,1753164641673,-460.0,0.00016772,2]
[373963695,1753164641683,-500.0,0.00016772,2]
[373963697,1753164641692,-460.0,0.00016772,2]
[373963699,1753164641703,-460.0,0.00016772,2]
[373963701,1753164641713,-460.0,0.00016772,2]
[373963703,1753164641722,-584.31,0.00016772,2]
[373963705,1753164641731,-460.0,0.00016772,2]
[373963707,1753164641740,-460.0,0.00016772,2]
[373963709,1753164641751,-460.0,0.00016772,2]
[373963711,1753164641760,-460.0,0.00016772,2]
[373963713,1753164641769,-460.0,0.00016772,2]
[373963715,1753164641779,-270.47790927,0.00016772,2]
[373963717,1753164641788,-859.05,0.00016772,2]
[373963719,1753164641797,-460.0,0.00016772,2]
[373963721,1753164641806,-460.0,0.00016772,2]
[373963723,1753164641819,-460.0,0.00016772,2]
[373963725,1753164641828,-460.0,0.00016772,2]
[373963727,1753164641838,-460.0,0.00016772,2]
[373963729,1753164641847,-460.0,0.00016772,2]
[373963731,1753164641857,-465.3009541,0.00016772,2]
[373963733,1753164641867,-460.0,0.00016772,2]
[373963735,1753164641876,-460.0,0.00016772,2]
[373963737,1753164641885,-460.0,0.00016772,2]
[373963739,1753164641895,-460.0,0.00016772,2]
[373963741,1753164641904,-460.0,0.00016772,2]
[373963743,1753164641913,-460.0,0.00016772,2]
[373963745,1753164641922,-460.0,0.00016772,2]
[373963747,1753164641931,-460.0,0.00016772,2]
[373963749,1753164641941,-1381.5,0.00016823,2]
[373963751,1753164641950,-500.0,0.00016823,2]
[373963753,1753164641959,-460.0,0.00016823,2]
[373963755,1753164641968,-460.0,0.00016823,2]
[373963757,1753164641978,-460.0,0.00016824,2]
[373963759,1753164641987,-602.0158572,0.00016824,2]
[373963761,1753164641998,-460.0,0.00016824,2]
[373963763,1753164642007,-460.0,0.00016824,2]
[373963765,1753164642016,-460.0,0.00016824,2]
[373963767,1753164642025,-460.0,0.00016824,2]
[373963769,1753164642034,-410.67915007,0.00016824,2]
[373963771,1753164642043,-460.0,0.00016824,2]
[373963773,1753164642052,-460.0,0.00016824,2]
[373963774,1753164642061,-469.45569337,0.00016824,2]
[373963777,1753164642070,-460.0,0.00016824,2]
[373963779,1753164642080,-460.0,0.00016824,2]
[373963780,1753164642090,-460.0,0.00016824,2]
[373963782,1753164642099,-460.0,0.00016824,2]
[373963784,1753164642108,-460.0,0.00016824,2]
[373963786,1753164642117,-460.0,0.00016824,2]
[373963788,1753164642127,-460.0,0.00016824,2]
[373963790,1753164642136,-460.0,0.00016824,2]
[373963792,1753164642145,-460.0,0.00016824,2]
[373963794,1753164642154,-460.0,0.00016824,2]
[373963796,1753164642164,-460.0,0.00016824,2]
[373963798,1753164642173,-460.0,0.00016824,2]
[373963800,1753164642183,-270.97257431,0.00016824,2]
[373963802,1753164642192,-460.0,0.00016824,2]
[373963805,1753164642207,-500.0,0.00016824,2]
[373963807,1753164642217,-460.0,0.00016824,2]
[373963809,1753164642228,-285.16982034,0.00016824,2]
[373963811,1753164642237,-462.61295759,0.00016824,2]
[373963813,1753164642251,-460.0,0.00016824,2]
[373963815,1753164642261,-460.0,0.00016824,2]
[373963817,1753164642271,-460.0,0.00016824,2]
[373963819,1753164642281,-460.0,0.00016824,2]
[373963821,1753164642291,-460.0,0.00016824,2]
[373963823,1753164642301,-460.70624162,0.00016824,2]
[373963825,1753164642311,-460.0,0.00016824,2]
[373963827,1753164642321,-460.0,0.00016824,2]
[373963829,1753164642330,-460.0,0.00016824,2]
[373963831,1753164642340,-460.0,0.00016824,2]
[373963832,1753164642350,-460.0,0.00016824,2]
[373963835,1753164642360,-460.0,0.00016824,2]
[373963836,1753164642369,-460.0,0.00016824,2]
[373963838,1753164642379,-460.0,0.00016824,2]
[373963840,1753164642388,-460.0,0.00016824,2]
[373963843,1753164642398,-460.0,0.00016824,2]
[373963844,1753164642407,-433.75656594,0.00016824,2]
[373963847,1753164642417,-460.0,0.00016824,2]
[373963848,1753164642426,-460.0,0.00016824,2]
[373963851,1753164642435,-460.0,0.00016824,2]
[373963853,1753164642445,-460.0,0.00016824,2]
[373963855,1753164642455,-460.0,0.00016824,2]
[373963857,1753164642464,-465.85290375,0.00016824,2]
[373963859,1753164642474,-462.44040617,0.00016824,2]
[373963861,1753164642484,-460.0,0.00016824,2]
[373963863,1753164642493,-460.0,0.00016824,2]
[373963865,1753164642506,-460.0,0.00016824,2]
[373963867,1753164642516,-460.0,0.00016824,2]
[373963869,1753164642525,-460.0,0.00016824,2]
[373963871,1753164642535,-460.0,0.00016824,2]
[373963873,1753164642544,-460.0,0.00016824,2]
[373963874,1753164642554,-460.0,0.00016824,2]
[373963877,1753164642564,-460.0,0.00016824,2]
[373963879,1753164642578,-460.0,0.00016824,2]
[373963881,1753164642590,-460.0,0.00016824,2]
[373963883,1753164642599,-1381.5,0.00016825,2]
[373963885,1753164642609,-1381.5,0.00016825,2]
[373963887,1753164642619,-460.0,0.00016826,2]
[373963889,1753164642628,-459.24784935,0.00016826,2]
[373963891,1753164642638,-368.87749495,0.00016826,2]
[373963893,1753164642647,-460.55459513,0.00016826,2]
[373963895,1753164642657,-460.0,0.00016826,2]
[373963896,1753164642666,-460.0,0.00016826,2]
[373963898,1753164642676,-596.20970849,0.00016826,2]
[373963900,1753164642685,-460.0,0.00016826,2]
[373963902,1753164642694,-258.65595581,0.00016826,2]
[373963904,1753164642704,-460.0,0.00016826,2]
[373963907,1753164642714,-591.7002241,0.00016826,2]
[373963909,1753164642723,-462.81035214,0.00016826,2]
[373963910,1753164642733,-460.0,0.00016826,2]
[373963913,1753164642742,-460.0,0.00016826,2]
[373963915,1753164642754,-460.0,0.00016826,2]
[373963917,1753164642764,-460.0,0.00016826,2]
[373963919,1753164642772,-460.0,0.00016826,2]
[373963921,1753164642781,-559.59,0.00016826,2]
[373963922,1753164642791,-460.0,0.00016826,2]
[373963924,1753164642800,-460.0,0.00016826,2]
[373963927,1753164642809,-460.0,0.00016826,2]
[373963928,1753164642820,-460.0,0.00016826,2]
[373963930,1753164642830,-460.0,0.00016826,2]
[373963932,1753164642840,-460.0,0.00016826,2]
[373963934,1753164642850,-500.0,0.00016826,2]
[373963936,1753164642860,-1381.5,0.00016827,2]
[373963939,1753164642870,-1381.5,0.00016828,2]
[373963941,1753164642880,-1381.5,0.00016828,2]
[373963943,1753164642889,-1381.5,0.00016828,2]
[373963945,1753164642898,-1381.5,0.00016828,2]
[373963947,1753164642907,-1381.5,0.00016828,2]
[373963949,1753164642917,-1381.5,0.00016828,2]
[373963951,1753164642926,-1381.5,0.00016828,2]
[373963953,1753164642935,-1381.5,0.00016829,2]
[373963955,1753164642945,-1381.5,0.00016829,2]
[373963957,1753164642953,-460.0,0.0001683,2]
[373963959,1753164642962,-737.93,0.0001683,2]
[373963961,1753164642971,-640.41,0.0001683,2]
[373963963,1753164642981,-1373.43,0.0001683,2]
[373963965,1753164642989,-460.0,0.0001683,2]
[373963967,1753164643000,-578.96,0.0001683,2]
[373963969,1753164643009,-3402.89,0.0001683,2]
[373963970,1753164643018,-475.71354801,0.0001683,2]
[373963972,1753164643027,-1065.29,0.0001683,2]
[373963974,1753164643037,-460.0,0.0001683,2]
[373963976,1753164643046,-1381.5,0.00016831,2]
[373963979,1753164643055,-311.0,0.00016843,2]
[373963980,1753164643065,-1381.5,0.00016872,2]
[373963982,1753164643074,-474.0,0.00016992,2]
[373963984,1753164643083,-460.0,0.00016993,2]
[373963986,1753164643093,-460.0,0.00016993,2]
[373963988,1753164643102,-460.0,0.00016993,2]
[373963990,1753164643112,-460.0,0.00016993,2]
[373963992,1753164643122,-460.0,0.00016993,2]
[373963994,1753164643132,-460.0,0.00016993,2]
[373963996,1753164643141,-460.0,0.00016993,2]
[373963998,1753164643150,-645.62,0.00016993,2]
[373964000,1753164643159,-460.0,0.00016995,2]
[373964002,1753164643169,-1442.99,0.00016995,2]
[373964004,1753164643178,-460.0,0.00016995,2]
[373964006,1753164643187,-460.0,0.00016995,2]
[373964008,1753164643196,-460.0,0.00016995,2]
[373964010,1753164643205,-460.0,0.00016995,2]
[373964012,1753164643214,-911.11,0.00016995,2]
[373964014,1753164643224,-460.0,0.00016995,2]
[373964016,1753164643233,-460.0,0.00016995,2]
[373964018,1753164643242,-460.0,0.00016995,2]
[373964021,1753164643254,-460.0,0.00016995,2]
[373964024,1753164643264,-460.0,0.00016995,2]
[373964027,1753164643273,-599.24700882,0.00016996,2]
[373964030,1753164643283,-460.0,0.00016996,2]
[373964032,1753164643292,-463.30864532,0.00016996,2]
[373964034,1753164643301,-460.0,0.00016996,2]
[373964036,1753164643311,-460.0,0.00016996,2]
[373964038,1753164643320,-460.0,0.00016996,2]
[373964039,1753164643329,-460.0,0.00016996,2]
[373964041,1753164643338,-460.0,0.00016996,2]
[373964043,1753164643347,-460.0,0.00016996,2]
[373964045,1753164643356,-460.0,0.00016996,2]
[373964047,1753164643365,-460.0,0.00016996,2]
[373964049,1753164643374,-460.0,0.00016996,2]
[373964051,1753164643384,-460.0,0.00016996,2]
[373964053,1753164643393,-460.0,0.00016996,2]
[373964055,1753164643403,-460.0,0.00016996,2]
[373964057,1753164643412,-460.0,0.00016996,2]
[373964059,1753164643422,-460.0,0.00016996,2]
[373964061,1753164643432,-460.0,0.00016996,2]
[373964063,1753164643442,-460.0,0.00016996,2]
[373964065,1753164643452,-460.0,0.00016996,2]
[373964067,1753164643462,-593.06945612,0.00016996,2]
[373964069,1753164643471,-460.0,0.00016996,2]
[373964071,1753164643481,-2099.66,0.00016996,2]
[373964073,1753164643490,-460.0,0.00016996,2]
[373964075,1753164643502,-460.0,0.00016996,2]
[373964077,1753164643511,-460.0,0.00016996,2]
[373964079,1753164643520,-237.4209502,0.00016996,2]
[373964081,1753164643529,-460.0,0.00016996,2]
[373964083,1753164643539,-460.0,0.00016996,2]